fUST/lending_fUST_20250127
["ID","MTS","AMOUNT","RATE_DAILY","PERIOD"]
[350537881,1737952239782,-578.4,0.00016712,2]
[350537882,1737952239791,-500.0,0.00016712,2]
[350537883,1737952239801,-500.0,0.00016712,2]
[350537884,1737952239810,-177.14451148,0.00016712,2]
[350537885,1737952239821,-322.85548852,0.00016712,2]
[350537886,1737952239831,-500.0,0.00016712,2]
[350537887,1737952239841,-500.0,0.00016712,2]
[350537888,1737952239851,-500.0,0.00016712,2]
[350537889,1737952239861,-500.0,0.00016712,2]
[350537890,1737952239871,-500.0,0.00016712,2]
[350537891,1737952239881,-500.0,0.00016712,2]
[350537892,1737952239890,-500.0,0.00016712,2]
[350537893,1737952239899,-500.0,0.00016712,2]
[350537894,1737952239909,-500.0,0.00016712,2]
[350537895,1737952239918,-500.0,0.00016712,2]
[350537896,1737952239928,-157.98,0.00016712,2]
[350537897,1737952239938,-500.0,0.00016712,2]
[350537898,1737952239947,-500.0,0.00016712,2]
[350537899,1737952239957,-500.0,0.00016712,2]
[350537900,1737952239967,-430.61,0.00016712,2]
[350537901,1737952239976,-252.92,0.00016712,2]
[350537902,1737952239985,-316.36,0.00016712,2]
[350537903,1737952239994,-500.0,0.00016712,2]
[350537904,1737952240003,-500.0,0.00016712,2]
[350537905,1737952240013,-1325.57,0.00016712,2]
[350537906,1737952240022,-189.07,0.00016712,2]
[350537907,1737952240031,-1927.09,0.00016712,2]
[350537909,1737952240040,-500.0,0.00016712,2]
[350537910,1737952240050,-217.58,0.00016712,2]
[350537911,1737952240059,-805.42,0.00016712,2]
[350537912,1737952240068,-660.44,0.00016712,2]
[350537913,1737952240077,-500.0,0.00016712,2]
[350537914,1737952240087,-500.0,0.00016712,2]
[350537915,1737952240096,-500.0,0.00016712,2]
[350537916,1737952240106,-500.0,0.00016712,2]
[350537917,1737952240116,-500.0,0.00016712,2]
[350537918,1737952240126,-587.32,0.00016845,2]
[350537919,1737952240136,-283.25890935,0.00016847,2]
[350537920,1737952240146,-196.86758329,0.00016847,2]
[350537922,1737952240156,-500.0,0.00016847,2]
[350537923,1737952240166,-386.24847762,0.00016848,2]
[350537924,1737952240175,-523.56,0.00016849,2]
[350537925,1737952240184,-438.6,0.00016849,2]
[350537926,1737952240194,-276.0,0.00016849,2]
[350537927,1737952240203,-500.0,0.00016849,2]
[350537929,1737952240212,-500.0,0.00016849,2]
[350537931,1737952240222,-500.0,0.00016849,2]
[350537932,1737952240231,-500.0,0.00016849,2]
[350537933,1737952240241,-500.0,0.00016849,2]
[350537934,1737952240250,-500.0,0.00016849,2]
[350537935,1737952240259,-500.0,0.00016849,2]
[350537937,1737952240269,-500.0,0.00016849,2]
[350537938,1737952240279,-500.0,0.00016849,2]
[350537939,1737952240288,-420.04,0.00016849,2]
[350537940,1737952240297,-500.0,0.00016849,2]
[350537941,1737952240307,-240.95858279,0.00016849,2]
[350537942,1737952240319,-38.02141721,0.00016849,2]
[350537943,1737952240330,-188.15,0.00016849,2]
[350537944,1737952240340,-500.0,0.00016849,2]
[350537945,1737952240350,-500.0,0.00016849,2]
[350537946,1737952240359,-500.0,0.00016849,2]
[350537947,1737952240369,-121.37456998,0.00016849,2]
[350537948,1737952240381,-378.62543002,0.00016849,2]
[350537949,1737952240390,-1325.57,0.00016849,2]
[350537950,1737952240399,-1927.09,0.00016849,2]
[350537951,1737952240408,-500.0,0.00016849,2]
[350537952,1737952240418,-805.42,0.00016849,2]
[350537953,1737952240428,-660.44,0.00016849,2]
[350537954,1737952240437,-500.0,0.00016849,2]
[350537955,1737952240446,-500.0,0.00016849,2]
[350537956,1737952240455,-500.0,0.00016849,2]
[350537957,1737952240464,-500.0,0.00016849,2]
[350537958,1737952240473,-500.0,0.00016986,2]
[350537959,1737952240483,-417.16,0.00016986,2]
[350537960,1737952240491,-500.0,0.00016986,2]
[350537961,1737952240501,-500.0,0.00016986,2]
[350537962,1737952240511,-242.24,0.00016986,2]
[350537963,1737952240523,-500.0,0.00016986,2]
[350537964,1737952240532,-500.0,0.00016986,2]
[350537965,1737952240541,-500.0,0.00016986,2]
[350537966,1737952240549,-500.0,0.00016986,2]
[350537967,1737952240557,-500.0,0.00016986,2]
[350537968,1737952240569,-304.49,0.00016986,2]
[350537969,1737952240579,-500.0,0.00016986,2]
[350537970,1737952240588,-500.0,0.00016986,2]
[350537971,1737952240597,-500.0,0.00016986,2]
[350537972,1737952240607,-1325.57,0.00016986,2]
[350537973,1737952240616,-1927.09,0.00016986,2]
[350537974,1737952240626,-500.0,0.00016986,2]
[350537975,1737952240635,-805.42,0.00016986,2]
[350537976,1737952240644,-660.44,0.00016986,2]
[350537977,1737952240653,-500.0,0.00016986,2]
[350537978,1737952240663,-500.0,0.00016986,2]
[350537979,1737952240673,-500.0,0.00016986,2]
[350537980,1737952240683,-229.46,0.00016986,2]
[350537981,1737952240693,-196.84734716,0.00017023,2]
[350537982,1737952240701,-500.0,0.00017023,2]
[350537983,1737952240710,-500.0,0.00017123,2]
[350537984,1737952240719,-500.0,0.00017123,2]
[350537985,1737952240728,-500.0,0.00017123,2]
[350537986,1737952240737,-500.0,0.00017123,2]
[350537987,1737952240745,-500.0,0.00017123,2]
[350537988,1737952240754,-500.0,0.00017123,2]
[350537989,1737952240763,-500.0,0.00017123,2]
[350537990,1737952240772,-500.0,0.00017123,2]
[350537991,1737952240781,-500.0,0.00017123,2]
[350537992,1737952240790,-614.34,0.00017123,2]
[350537993,1737952240798,-500.0,0.00017123,2]
[350537994,1737952240807,-1325.57,0.00017123,2]
[350537995,1737952240817,-1927.09,0.00017123,2]
[350537996,1737952240826,-160.93,0.00017123,2]
[350537997,1737952240835,-805.42,0.00017123,2]
[350537998,1737952240844,-660.44,0.00017123,2]
[350537999,1737952240853,-500.0,0.00017123,2]
[350538000,1737952240863,-500.0,0.00017123,2]
[350538001,1737952240872,-500.0,0.00017123,2]
[350538002,1737952240880,-500.0,0.0001726,2]
[350538003,1737952240889,-500.0,0.0001726,2]
[350538004,1737952240898,-500.0,0.0001726,2]
[350538005,1737952240907,-528.46,0.0001726,2]
[350538006,1737952240915,-500.0,0.0001726,2]
[350538007,1737952240925,-500.0,0.0001726,2]
[350538008,1737952240935,-516.94,0.0001726,2]
[350538009,1737952240944,-574.28,0.0001726,2]
[350538010,1737952240953,-500.0,0.0001726,2]
[350538011,1737952240962,-619.58,0.0001726,2]
[350538012,1737952240971,-1325.57,0.0001726,2]
[350538013,1737952240979,-1927.09,0.0001726,2]
[350538014,1737952240989,-805.42,0.0001726,2]
[350538015,1737952240998,-660.44,0.0001726,2]
[350538016,1737952241007,-500.0,0.0001726,2]
[350538017,1737952241105,-155.6,0.0001726,2]
[350538018,1737952241126,-500.0,0.0001726,2]
[350538019,1737952241136,-500.0,0.00017397,2]
[350538020,1737952241145,-500.0,0.00017397,2]
[350538021,1737952241155,-500.0,0.00017397,2]
[350538022,1737952241165,-500.0,0.00017397,2]
[350538023,1737952241174,-500.0,0.00017397,2]
[350538024,1737952241186,-500.0,0.00017397,2]
[350538025,1737952241195,-1325.57,0.00017397,2]
[350538026,1737952241203,-1927.09,0.00017397,2]
[350538027,1737952241212,-805.42,0.00017397,2]
[350538028,1737952241221,-660.44,0.00017397,2]
[350538029,1737952241230,-500.0,0.00017397,2]
[350538030,1737952241240,-500.0,0.00017397,2]
[350538031,1737952241249,-500.0,0.00017534,2]
[350538032,1737952241258,-500.0,0.00017534,2]
[350538033,1737952241267,-500.0,0.00017534,2]
[350538034,1737952241276,-500.0,0.00017534,2]
[350538035,1737952241286,-500.0,0.00017534,2]
[350538036,1737952241295,-500.0,0.00017534,2]
[350538037,1737952241304,-1325.57,0.00017534,2]
[350538038,1737952241313,-1927.09,0.00017534,2]
[350538039,1737952241322,-805.42,0.00017534,2]
[350538040,1737952241331,-660.44,0.00017534,2]
[350538041,1737952241340,-500.0,0.00017534,2]
[350538042,1737952241349,-500.0,0.00017534,2]
[350538043,1737952241358,-500.0,0.00017671,2]
[350538044,1737952241367,-500.0,0.00017671,2]
[350538045,1737952241377,-500.0,0.00017671,2]
[350538046,1737952241386,-500.0,0.00017671,2]
[350538047,1737952241395,-208.72,0.00017671,2]
[350538048,1737952241404,-500.0,0.00017671,2]
[350538049,1737952241413,-1325.57,0.00017671,2]
[350538050,1737952241422,-1927.09,0.00017671,2]
[350538051,1737952241433,-805.42,0.00017671,2]
[350538052,1737952241443,-660.44,0.00017671,2]
[350538053,1737952241452,-500.0,0.00017671,2]
[350538054,1737952241461,-500.0,0.00017671,2]
[350538055,1737952241470,-500.0,0.00017808,2]
[350538056,1737952241479,-500.0,0.00017808,2]
[350538057,1737952241488,-500.0,0.00017808,2]
[350538058,1737952241497,-500.0,0.00017808,2]
[350538059,1737952241506,-500.0,0.00017808,2]
[350538060,1737952241514,-1325.57,0.00017808,2]
[350538061,1737952241525,-1927.09,0.00017808,2]
[350538062,1737952241536,-805.42,0.00017808,2]
[350538063,1737952241545,-660.44,0.00017808,2]
[350538064,1737952241554,-500.0,0.00017808,2]
[350538065,1737952241565,-500.0,0.00017808,2]
[350538066,1737952241574,-500.0,0.00017945,2]
[350538067,1737952241584,-500.0,0.00017945,2]
[350538068,1737952241594,-500.0,0.00017945,2]
[350538069,1737952241605,-500.0,0.00017945,2]
[350538070,1737952241613,-500.0,0.00017945,2]
[350538071,1737952241621,-1325.57,0.00017945,2]
[350538072,1737952241630,-1927.09,0.00017945,2]
[350538073,1737952241638,-805.42,0.00017945,2]
[350538074,1737952241647,-660.44,0.00017945,2]
[350538075,1737952241656,-500.0,0.00017945,2]
[350538076,1737952241665,-500.0,0.00017945,2]
[350538077,1737952241674,-420.0,0.00017963,2]
[350538078,1737952241685,-512.36,0.00018082,2]
[350538079,1737952241695,-500.0,0.00018082,2]
[350538080,1737952241705,-500.0,0.00018082,2]
[350538081,1737952241715,-500.0,0.00018082,2]
[350538082,1737952241723,-500.0,0.00018082,2]
[350538083,1737952241732,-1325.57,0.00018082,2]
[350538084,1737952241741,-1927.09,0.00018082,2]
[350538085,1737952241751,-805.42,0.00018082,2]
[350538086,1737952241761,-660.44,0.00018082,2]
[350538087,1737952241771,-500.0,0.00018082,2]
[350538088,1737952241781,-500.0,0.00018082,2]
[350538089,1737952241791,-472.38,0.00018219,2]
[350538090,1737952241801,-500.0,0.00018219,2]
[350538091,1737952241810,-500.0,0.00018219,2]
[350538092,1737952241820,-377.36,0.00018219,2]
[350538093,1737952241830,-1325.57,0.00018219,2]
[350538094,1737952241840,-1927.09,0.00018219,2]
[350538095,1737952241849,-805.42,0.00018219,2]
[350538096,1737952241859,-660.44,0.00018219,2]
[350538097,1737952241869,-500.0,0.00018219,2]
[350538098,1737952241879,-533.62,0.00018219,2]
[350538099,1737952241888,-500.0,0.00018356,2]
[350538100,1737952241898,-500.0,0.00018356,2]
[350538101,1737952241908,-1325.57,0.00018356,2]
[350538102,1737952241918,-1927.09,0.00018356,2]
[350538103,1737952241928,-805.42,0.00018356,2]
[350538104,1737952241937,-660.44,0.00018356,2]
[350538105,1737952241947,-500.0,0.00018356,2]
[350538106,1737952241957,-172.68295028,0.00018471,2]
[350538107,1737952241967,-1639.36604674,0.00018493,5]
[350538108,1737952241976,-500.0,0.00018493,2]
[350538109,1737952241986,-590.08,0.00018493,2]
[350538110,1737952241996,-1325.57,0.00018493,2]
[350538111,1737952242006,-1927.09,0.00018493,2]
[350538112,1737952242015,-805.42,0.00018493,2]
[350538113,1737952242025,-660.44,0.00018493,2]
[350538114,1737952242035,-494.19151987,0.00018493,2]
[350538115,1737952242044,-150.68,0.000186,2]
[350538116,1737952242053,-150.68,0.000186,2]
[350538117,1737952242063,-500.0,0.0001863,2]
[350538118,1737952242072,-1325.57,0.0001863,2]
[350538119,1737952242082,-1927.09,0.0001863,2]
[350538120,1737952242091,-805.42,0.0001863,2]
[350538121,1737952242100,-660.44,0.0001863,2]
[350538122,1737952242110,-4138.13,0.000187,2]
[350538123,1737952242119,-500.0,0.00018767,2]
[350538124,1737952242128,-1325.57,0.00018767,2]
[350538125,1737952242138,-1927.09,0.00018767,2]
[350538126,1737952242147,-805.42,0.00018767,2]
[350538127,1737952242157,-660.44,0.00018767,2]
[350538128,1737952242167,-1187.68348902,0.000189,2]
[350538129,1737952242176,-500.0,0.00018904,2]
[350538130,1737952242186,-1325.57,0.00018904,2]
[350538131,1737952242195,-1927.09,0.00018904,2]
[350538132,1737952242205,-805.42,0.00018904,2]
[350538133,1737952242215,-660.44,0.00018904,2]
[350538134,1737952242224,-500.0,0.00019041,2]
[350538135,1737952242233,-1325.57,0.00019041,2]
[350538136,1737952242242,-1927.09,0.00019041,2]
[350538137,1737952242252,-805.42,0.00019041,2]
[350538138,1737952242261,-660.44,0.00019041,2]
[350538139,1737952242271,-500.0,0.00019178,7]
[350538140,1737952242280,-500.0,0.00019178,2]
[350538141,1737952242289,-1325.57,0.00019178,2]
[350538142,1737952242299,-1927.09,0.00019178,2]
[350538143,1737952242308,-805.42,0.00019178,2]
[350538144,1737952242318,-660.44,0.00019178,2]
[350538145,1737952242327,-274.861841,0.00019178,2]
[350538146,1737952242337,-500.0,0.00019315,2]
[350538147,1737952242346,-1325.57,0.00019315,2]
[350538148,1737952242356,-1927.09,0.00019315,2]
[350538149,1737952242365,-805.42,0.00019315,2]
[350538150,1737952242375,-660.44,0.00019315,2]
[350538151,1737952242384,-331.98,0.00019452,2]
[350538152,1737952242394,-1325.57,0.00019452,2]
[350538153,1737952242404,-1927.09,0.00019452,2]
[350538154,1737952242413,-805.42,0.00019452,2]
[350538155,1737952242423,-660.44,0.00019452,2]
[350538156,1737952242433,-1325.65,0.00019589,2]
[350538157,1737952242443,-1050.40535792,0.00019589,2]
[350538158,1737952242457,-876.86964208,0.00019589,2]
[350538159,1737952242466,-805.62973865,0.00019589,2]
[350538160,1737952242476,-660.65,0.00019589,2]
[350538161,1737952242486,-587.0,0.00019631,2]
[350538162,1737952242495,-500.0,0.00019863,9]
[350538164,1737952242505,-500.0,0.00019998,2]
[350538166,1737952242515,-500.0,0.00019998,2]
[350538168,1737952242530,-1151.31,0.0002,2]
[350538169,1737952242542,-160.0,0.0002,2]
[350538170,1737952242551,-151.45456969,0.0002,2]
[350538171,1737952242561,-160.0,0.0002,3]
[350538172,1737952242571,-160.0,0.0002,3]
[350538173,1737952242580,-334.43016618,0.0002,7]
[350538174,1737952242590,-500.0,0.00020135,2]
[350538175,1737952242600,-500.0,0.00020272,2]
[350538178,1737952242610,-351.742566,0.00020447,2]
[350538180,1737952242619,-151.0,0.00020487,6]
[350538181,1737952242629,-500.0,0.00020547,11]
[350538182,1737952242638,-151.0,0.00020989,6]
[350538183,1737952242647,-500.0,0.00021232,13]
[350538184,1737952242656,-395.0,0.0002127,2]
[350538185,1737952242665,-4138.13,0.000213,2]
[350538186,1737952242674,-823.0,0.00021454,2]
[350538187,1737952242684,-151.0,0.00021491,6]
[350538188,1737952242693,-155.1479102,0.00021699,2]
[350538189,1737952242702,-153.0,0.00021699,2]
[350538190,1737952242711,-153.0,0.00021699,2]
[350538191,1737952242720,-296.8363382,0.00021699,2]
[350538192,1737952242729,-152.34,0.000219,31]
[350538193,1737952242738,-152.34,0.000219,31]
[350538194,1737952242748,-152.34,0.000219,31]
[350538195,1737952242758,-152.34,0.000219,31]
[350538196,1737952242767,-152.34,0.000219,31]
[350538197,1737952242776,-152.34,0.000219,31]
[350538198,1737952242785,-152.34,0.000219,31]
[350538199,1737952242794,-152.34,0.000219,31]
[350538200,1737952242803,-152.34,0.000219,31]
[350538201,1737952242813,-600.0,0.00021917,2]
[350538202,1737952242822,-404.46622256,0.00021917,2]
[350538203,1737952242831,-8011.39709882,0.00021968,2]
[350538204,1737952242841,-151.0,0.00021993,7]
[350538205,1737952242850,-1501.32353571,0.000223,7]
[350538206,1737952242863,-449.59861711,0.000223,7]
[350538207,1737952242874,-2893.39480248,0.000223,7]
[350538208,1737952242886,-498.99625122,0.000223,7]
[350538211,1737952242985,-802.71685759,0.000223,7]
[350538212,1737952242994,-8011.39709883,0.00022445,2]
[350538213,1737952243004,-151.0,0.00022459,3]
[350538214,1737952243013,-151.0,0.00022459,3]
[350538215,1737952243023,-151.0,0.00022459,3]
[350538216,1737952243032,-151.0,0.00022459,3]
[350538218,1737952243041,-151.0,0.00022459,3]
[350538219,1737952243050,-151.0,0.00022459,3]
[350538220,1737952243059,-174.0,0.00022472,3]
[350538221,1737952243068,-151.0,0.00022495,7]
[350538222,1737952243078,-151.0,0.000225,5]
[350538223,1737952243088,-150.0,0.000225,5]
[350538224,1737952243098,-299.999999,0.000225,3]
[350538225,1737952243107,-500.0,0.00022509,8]
[350538226,1737952243116,-2189.8048216,0.00022521,61]
[350538227,1737952243125,-61557.10241907,0.00022526,61]
[350538228,1737952243137,-1324.79927219,0.00022526,61]
[350538229,1737952243159,-3780.92352993,0.00022526,61]
[350538230,1737952243170,-38109.57945388,0.00022526,61]
[350538231,1737952243182,-997.52404847,0.00022526,61]
[350538232,1737952243262,-17422.13938404,0.00022526,61]
[350538233,1737952243273,-5034.0,0.00022526,61]
[350538234,1737952243285,-2348.29445835,0.00022526,61]
[350538295,1737952246233,-2330.97505029,0.00022526,61]
[350538297,1737952246248,-6899.10553006,0.00022526,61]
[350538299,1737952246259,-19260.29454545,0.00022526,61]
[350538303,1737952246286,-4612.43403855,0.00022526,61]
[350538305,1737952246298,-16672.00810069,0.00022526,61]
[350538308,1737952246309,-65095.41775436,0.00022526,61]
[350538310,1737952246320,-10271.5,0.00022526,61]
[350538330,1737952724721,324.745462,0.00013973,2]
[350538338,1737953079368,303.6813169,0.00014973,2]
[350538339,1737953088617,303.6813169,0.00014973,2]
[350538340,1737953225149,-1194.09242,0.00015484,2]
[350538341,1737953225171,-1194.09242,0.0001564,2]
[350538342,1737953225192,-1230.4732939,0.00015798,2]
[350538343,1737953225213,-303.6813169,0.00015903,2]
[350538344,1737953225234,-300.0,0.00016437,2]
[350538345,1737953225257,-413.96045863,0.00016438,2]
[350538346,1737953225279,-500.0,0.00016438,2]
[350538347,1737953225299,-503.56600726,0.00016438,2]
[350538348,1737953225320,-500.0,0.00016438,2]
[350538349,1737953225341,-500.0,0.00016438,2]
[350538350,1737953225362,-503.84730863,0.00016438,2]
[350538351,1737953225381,-504.04473177,0.00016438,2]
[350538352,1737953225402,-503.46484979,0.00016438,2]
[350538353,1737953225422,-484.21608894,0.00016438,2]
[350538354,1737953225444,-500.0,0.00016438,2]
[350538355,1737953225466,-503.56454569,0.00016438,2]
[350538356,1737953225486,-500.0,0.00016438,2]
[350538357,1737953225507,-480.49370478,0.00016438,2]
[350538358,1737953239117,-418.92035698,0.00016274,2]
[350538360,1737953345188,-9583.7628394,0.00015663,2]
[350538361,1737953345213,-377.96804207,0.00016274,2]
[350538362,1737953345234,-19.50629522,0.00016438,2]
[350538363,1737953345254,-504.03436663,0.00016438,2]
[350538364,1737953345275,-476.31980295,0.00016438,2]
[350538365,1737953345295,-500.0,0.00016438,2]
[350538366,1737953345316,-222.68813611,0.00016438,2]
[350538367,1737953345336,-500.0,0.00016438,2]
[350538368,1737953345357,-500.0,0.00016438,2]
[350538369,1737953345378,-918.207627,0.00016438,2]
[350538370,1737953345399,-500.0,0.00016575,2]
[350538371,1737953345419,-500.0,0.00016575,2]
[350538372,1737953345439,-178.65782213,0.00016609,2]
[350538373,1737953345462,-500.0,0.00016708,2]
[350538374,1737953345484,-500.0,0.00016708,2]
[350538375,1737953345506,-500.0,0.00016708,2]
[350538376,1737953345527,-620.16167714,0.00016709,7]
[350538377,1737953345547,-500.0,0.00016709,2]
[350538378,1737953345568,-500.0,0.00016709,2]
[350538379,1737953345764,-500.0,0.00016709,2]
[350538380,1737953345788,-500.0,0.00016709,2]
[350538381,1737953345809,-500.0,0.00016709,2]
[350538382,1737953345831,-500.0,0.00016709,2]
[350538383,1737953345854,-836.07,0.00016709,2]
[350538384,1737953345875,-500.0,0.00016709,2]
[350538385,1737953345897,-500.0,0.00016709,2]
[350538386,1737953345919,-500.0,0.00016709,2]
[350538387,1737953345941,-500.0,0.00016709,2]
[350538388,1737953345962,-500.0,0.00016709,2]
[350538389,1737953345985,-500.0,0.00016709,2]
[350538390,1737953346006,-500.0,0.00016709,2]
[350538391,1737953346028,-908.85,0.00016709,2]
[350538392,1737953346050,-500.0,0.00016709,2]
[350538393,1737953346072,-500.0,0.00016709,2]
[350538394,1737953346093,-500.0,0.00016709,2]
[350538395,1737953346114,-500.0,0.00016709,2]
[350538396,1737953346138,-500.0,0.00016709,2]
[350538397,1737953346159,-500.0,0.00016709,2]
[350538398,1737953346180,-500.0,0.00016709,2]
[350538399,1737953346201,-458.9897779,0.00016709,2]
[350538400,1737953346223,-500.0,0.00016709,2]
[350538401,1737953346244,-500.0,0.00016709,2]
[350538402,1737953346265,-500.0,0.00016709,2]
[350538403,1737953346287,-500.0,0.00016709,2]
[350538404,1737953346309,-500.0,0.00016709,2]
[350538405,1737953346331,-500.0,0.00016709,2]
[350538406,1737953346355,-500.0,0.00016709,2]
[350538407,1737953346377,-500.0,0.00016709,2]
[350538408,1737953346399,-500.0,0.00016709,2]
[350538409,1737953346421,-500.0,0.00016709,2]
[350538410,1737953346442,-500.0,0.00016709,2]
[350538411,1737953346468,-500.0,0.00016709,2]
[350538412,1737953346490,-500.0,0.00016709,2]
[350538413,1737953346512,-500.0,0.00016709,2]
[350538414,1737953346534,-500.0,0.00016709,2]
[350538415,1737953346555,-282.3833044,0.0001671,2]
[350538416,1737953346576,-500.0,0.0001671,2]
[350538417,1737953346598,-500.0,0.0001671,2]
[350538418,1737953346618,-500.0,0.0001671,2]
[350538419,1737953346639,-500.0,0.0001671,2]
[350538420,1737953346661,-500.0,0.0001671,2]
[350538421,1737953346683,-432.4157902,0.0001671,2]
[350538422,1737953346703,-500.0,0.0001671,2]
[350538423,1737953346724,-500.0,0.0001671,2]
[350538424,1737953346744,-500.0,0.0001671,2]
[350538425,1737953346765,-290.42291507,0.0001671,2]
[350538426,1737953346785,-500.0,0.0001671,2]
[350538427,1737953346805,-501.81943548,0.0001671,2]
[350538428,1737953346826,-500.0,0.0001671,2]
[350538429,1737953346848,-500.0,0.0001671,2]
[350538430,1737953346868,-500.0,0.0001671,2]
[350538431,1737953346892,-500.0,0.0001671,2]
[350538432,1737953346918,-2267.21,0.0001671,2]
[350538433,1737953346939,-500.0,0.0001671,2]
[350538434,1737953346963,-500.0,0.0001671,2]
[350538435,1737953346986,-500.0,0.0001671,2]
[350538436,1737953347008,-500.0,0.0001671,2]
[350538437,1737953347031,-973.14,0.0001671,2]
[350538438,1737953347052,-500.0,0.0001671,2]
[350538439,1737953347073,-500.0,0.0001671,2]
[350538440,1737953347095,-500.0,0.0001671,2]
[350538441,1737953347115,-500.0,0.00016712,2]
[350538442,1737953347136,-463.37000222,0.00016712,2]
[350538443,1737953347157,-500.0,0.00016845,2]
[350538444,1737953347180,-500.0,0.00016845,2]
[350538445,1737953347201,-500.0,0.00016845,2]
[350538446,1737953347222,-500.0,0.00016846,2]
[350538447,1737953347242,-500.0,0.00016846,2]
[350538448,1737953347262,-505.34879406,0.00016846,2]
[350538449,1737953347285,-500.0,0.00016846,2]
[350538450,1737953347306,-500.0,0.00016846,2]
[350538451,1737953347328,-836.07,0.00016846,2]
[350538452,1737953347352,-500.0,0.00016846,2]
[350538453,1737953347373,-500.0,0.00016846,2]
[350538454,1737953347394,-500.0,0.00016846,2]
[350538455,1737953347417,-908.85,0.00016846,2]
[350538456,1737953347438,-500.0,0.00016846,2]
[350538457,1737953347459,-500.0,0.00016846,2]
[350538458,1737953347480,-500.0,0.00016846,2]
[350538459,1737953347502,-500.0,0.00016846,2]
[350538460,1737953347525,-500.0,0.00016846,2]
[350538461,1737953347547,-500.0,0.00016846,2]
[350538462,1737953347568,-500.0,0.00016846,2]
[350538463,1737953347589,-504.9,0.00016846,2]
[350538464,1737953347612,-500.0,0.00016846,2]
[350538465,1737953347634,-500.0,0.00016846,2]
[350538466,1737953347654,-500.0,0.00016846,2]
[350538467,1737953347674,-500.0,0.00016846,2]
[350538468,1737953347695,-500.0,0.00016846,2]
[350538469,1737953347717,-500.0,0.00016846,2]
[350538470,1737953347737,-500.0,0.00016846,2]
[350538471,1737953347758,-500.0,0.00016846,2]
[350538472,1737953347779,-439.14,0.00016846,2]
[350538473,1737953347799,-500.0,0.00016846,2]
[350538474,1737953347820,-500.0,0.00016846,2]
[350538475,1737953347841,-500.0,0.00016847,2]
[350538476,1737953347869,-500.0,0.00016847,2]
[350538477,1737953347891,-2267.21,0.00016847,2]
[350538478,1737953347917,-500.0,0.00016847,2]
[350538479,1737953347939,-500.0,0.00016847,2]
[350538480,1737953347961,-973.14,0.00016847,2]
[350538481,1737953347986,-500.0,0.00016847,2]
[350538482,1737953348007,-500.0,0.00016847,2]
[350538483,1737953348028,-500.0,0.00016847,2]
[350538484,1737953348049,-500.0,0.00016849,2]
[350538485,1737953348071,-500.0,0.00016982,2]
[350538486,1737953348092,-249.91,0.00016982,2]
[350538487,1737953348116,-500.0,0.00016983,2]
[350538488,1737953348143,-524.78,0.00016983,2]
[350538489,1737953348167,-500.0,0.00016983,2]
[350538490,1737953348192,-836.07,0.00016983,2]